Workbook

Sheet Briefvorlage
B1: Empfänger: | F1: Zusätzliche-Kundenstammdaten | J1: Dummy für Zeilenhöhe
B2: BOCS Unternehmensberatung Ingenierbüro e.U. | F2: =VLOOKUP(B2,Kunden!$A$2:$E$31,5,FALSE) -> Firmenbuch. FN 309397 x UID AT U64249799 email: office@bocs.at www.bocs.at
B3: =VLOOKUP(B2,Kunden!$A$2:$E$31,2,FALSE) &" "& VLOOKUP(B2,Kunden!$A$2:$E$31,3,FALSE) -> Herr Ing.Dipl.Wi.Ing.(FH) Alexander Salib | J3: . .
B4: =VLOOKUP(B2,Kunden!$A$2:$E$31,4,FALSE) -> Reindorfgasse 32 A-1150 Wien | J4: . .
J6: . .
J7: .
B8: Betrifft: | E8: BÜROREINIGUNG / Unterhaltsreinigung "Regelmässig" | G8: Datum: | H8: =TODAY()+Rechnungsvorlage!D50 -> 2022-11-04
B10: =VLOOKUP($B$2,Kunden!A2:F31,6,FALSE)&" "&B3&"," -> Sehr geehrter Herr Ing.Dipl.Wi.Ing.(FH) Alexander Salib, | J10: . .
B11: danke für das entgegengebrachte Vertrauen in unser Unternehmen. | J11: =B11 -> danke für das entgegengebrachte Vertrauen in unser Unternehmen.
B12: Gerne beantworte ich Ihre Fragen: 1) 2) 3) | J12: =B12 -> Gerne beantworte ich Ihre Fragen: 1) 2) 3)
B13: Sind Sie zufrieden mit unserer Leistung? Dann empfehlen Sie uns doch weiter. Sollten sie Verbesserungsvorschläge für uns haben, so sagen sie es uns einfach. Vielen Dank | J13: =B13 -> Sind Sie zufrieden mit unserer Leistung? Dann empfehlen Sie uns doch weiter. Sollten sie Verbesserungsvorschläge für uns haben, so sagen sie es uns einfach. Vielen Dank
F14: =F50 -> 1
F50: 1

Sheet Rechnungsvorlage
B1: Rechnungsempfänger: | F1: Zusätzliche-Kundenstammdaten | J1: Dummy für Zeilenhöhe
B2: BOCS Unternehmensberatung Ingenierbüro e.U. | F2: =VLOOKUP(B2,Kunden!$A$2:$E$31,5,FALSE) -> Firmenbuch. FN 309397 x UID AT U64249799 email: office@bocs.at www.bocs.at | Z2: Geschäftsprozesse | AA2: Kopftexte | AB2: Fusstexte
B3: =VLOOKUP(B2,Kunden!$A$2:$E$31,2,FALSE) &" "& VLOOKUP(B2,Kunden!$A$2:$E$31,3,FALSE) -> Herr Ing.Dipl.Wi.Ing.(FH) Alexander Salib | Z3: =Einstellungen!G2 -> Rechnung Nr.: | AA3: =Einstellungen!H2 -> wir bedanken uns für das entgegen gebrachte Vertrauen und erlauben unsere Leistungen wie folgt zu verrechnen: | AB3: =Einstellungen!I2 -> Bitte bezahlen sie folgenden fälligen Betrag:
B4: =VLOOKUP(B2,Kunden!$A$2:$E$31,4,FALSE) -> Reindorfgasse 32 A-1150 Wien | J4: . . | Z4: =Einstellungen!G3 -> Zahlungserinnerung zur Rechnung Nr.: | AA4: =Einstellungen!H3 -> Leider konnten wir bis zum heutigen Datum keinerlei Einzahlungen ihrerseits auf unserem Konto feststellen. Sollten Sie zwischenzeitlich schon bezahlt haben so sehen sie dieses Schreiben als erledigt an. | AB4: =Einstellungen!I3 -> Bitte bezahlen sie folgenden überfälligen Betrag prompt:
Z5: =Einstellungen!G4 -> Angebot Nr.: | AA5: =Einstellungen!H4 -> wir freuen uns sehr, wenn Sie sich für unser Angebot entscheiden und bieten Ihnen wie folgt an: | AB5: =Einstellungen!I4 -> 44899
B6: Rechnung Nr.: | E6: 4711-2022 | J6: . . | Z6: =Einstellungen!G5 -> Auftragsbestätigung | AA6: =Einstellungen!H5 -> gerne bestätigen wir Ihnen den Auftrag wie folgt: | AB6: =Einstellungen!I5 -> Der Wert dieser Lieferung beträgt Gesamt:
B7: Betrifft: | E7: BÜROREINIGUNG / Unterhaltsreinigung "Regelmäßig" | J7: =E7 -> BÜROREINIGUNG / Unterhaltsreinigung "Regelmäßig" | Z7: =Einstellungen!G6 -> Lieferschein Nr.: | AA7: =Einstellungen!H6 -> Ihre Lieferung enthält folgende Positionen: | AB7: =Einstellungen!I6 -> Folgenden Betrag erhalten sie Retour:
B8: Zahlungsbedingung: | E8: Zahlungsziel 14 Tage | G8: Datum: | H8: =TODAY()+D50 -> 2022-11-04 | Z8: =Einstellungen!G7 -> Gutschrift Nr.: | AA8: =Einstellungen!H7 -> Ihre Gutschrift enthlält folgende Positionen: | AB8: =Einstellungen!I7 -> 
Z9: =Einstellungen!G8 -> 0 | AA9: =Einstellungen!H8 -> 0 | AB9: =Einstellungen!I8 -> 0
B10: =VLOOKUP($B$2,Kunden!A2:F31,6,FALSE)&" "&B3&"," -> Sehr geehrter Herr Ing.Dipl.Wi.Ing.(FH) Alexander Salib, | J10: =B10 -> Sehr geehrter Herr Ing.Dipl.Wi.Ing.(FH) Alexander Salib, | Z10: =Einstellungen!G9 -> 0 | AA10: =Einstellungen!H9 -> 0 | AB10: =Einstellungen!I9 -> 0
B11: =VLOOKUP(B6,Z2:AB10,2,FALSE) -> wir bedanken uns für das entgegen gebrachte Vertrauen und erlauben unsere Leistungen wie folgt zu verrechnen: | J11: =B11 -> wir bedanken uns für das entgegen gebrachte Vertrauen und erlauben unsere Leistungen wie folgt zu verrechnen:
G12: Leistungserbringung: | H12: =TODAY()+D50 -> 2022-11-04
B13: Pos | C13: Menge | D13: Einheit | E13: Tätigkeit/ Produkt/ Leistungsbeschreibung | F13: Preis € / Einheit | G13: Rabatt % / Position | H13: Gesamt € / Position
B14: 10 | C14: 12 | D14: =IFERROR(VLOOKUP($E14,Dienstleistungen!$A$2:$D$27,3,FALSE),"") -> Stunden | E14: Büroreinigung/ Unterhaltsreinigung. Nasswischen glatter Oberflächen, Staubsaugen, Staubwischen, Fussboden wischen, Müllertsorgen, Pflanzen gießen. Reinigung von Küche Sanitäranlagen,. | F14: =IFERROR(VLOOKUP($E14,Dienstleistungen!$A$2:$D$27,4,FALSE),"") -> 25 | H14: =IFERROR(IF(C14*F14*(1-G14)<>0,C14*F14*(1-G14),""),"") -> 300
B15: 20 | C15: 4 | D15: =IFERROR(VLOOKUP($E15,Dienstleistungen!$A$2:$D$27,3,FALSE),"") -> Anfahrt | E15: PKW-Aufwand innerhalb Wien inkl. Parkgebühren | F15: =IFERROR(VLOOKUP($E15,Dienstleistungen!$A$2:$D$27,4,FALSE),"") -> 80 | G15: 1 | H15: =IFERROR(IF(C15*F15*(1-G15)<>0,C15*F15*(1-G15),""),"") -> 
B16: 30 | D16: =IFERROR(VLOOKUP($E16,Dienstleistungen!$A$2:$D$27,3,FALSE),"") ->  | H16: =IFERROR(IF(C16*F16*(1-G16)<>0,C16*F16*(1-G16),""),"") -> 
B17: 40 | D17: =IFERROR(VLOOKUP($E17,Dienstleistungen!$A$2:$D$27,3,FALSE),"") ->  | F17: =IFERROR(VLOOKUP($E17,Dienstleistungen!$A$2:$D$27,4,FALSE),"") ->  | H17: =IFERROR(IF(C17*F17*(1-G17)<>0,C17*F17*(1-G17),""),"") -> 
B18: 50 | C18: =IFERROR(VLOOKUP($E18,Dienstleistungen!$A$2:$D$27,2,FALSE),"") ->  | D18: =IFERROR(VLOOKUP($E18,Dienstleistungen!$A$2:$D$27,3,FALSE),"") ->  | F18: =IFERROR(VLOOKUP($E18,Dienstleistungen!$A$2:$D$27,4,FALSE),"") ->  | H18: =IFERROR(IF(C18*F18*(1-G18)<>0,C18*F18*(1-G18),""),"") -> 
B19: 60 | C19: =IFERROR(VLOOKUP($E19,Dienstleistungen!$A$2:$D$27,2,FALSE),"") ->  | D19: =IFERROR(VLOOKUP($E19,Dienstleistungen!$A$2:$D$27,3,FALSE),"") ->  | F19: =IFERROR(VLOOKUP($E19,Dienstleistungen!$A$2:$D$27,4,FALSE),"") ->  | H19: =IFERROR(IF(C19*F19*(1-G19)<>0,C19*F19*(1-G19),""),"") -> 
B20: 70 | C20: =IFERROR(VLOOKUP($E20,Dienstleistungen!$A$2:$D$27,2,FALSE),"") ->  | D20: =IFERROR(VLOOKUP($E20,Dienstleistungen!$A$2:$D$27,3,FALSE),"") ->  | F20: =IFERROR(VLOOKUP($E20,Dienstleistungen!$A$2:$D$27,4,FALSE),"") -> 
B21: 80 | C21: =IFERROR(VLOOKUP($E21,Dienstleistungen!$A$2:$D$27,2,FALSE),"") ->  | D21: =IFERROR(VLOOKUP($E21,Dienstleistungen!$A$2:$D$27,3,FALSE),"") ->  | F21: =IFERROR(VLOOKUP($E21,Dienstleistungen!$A$2:$D$27,4,FALSE),"") -> 
B22: 90 | C22: =IFERROR(VLOOKUP($E22,Dienstleistungen!$A$2:$D$27,2,FALSE),"") ->  | D22: =IFERROR(VLOOKUP($E22,Dienstleistungen!$A$2:$D$27,3,FALSE),"") ->  | F22: =IFERROR(VLOOKUP($E22,Dienstleistungen!$A$2:$D$27,4,FALSE),"") -> 
B23: 100 | C23: =IFERROR(VLOOKUP($E23,Dienstleistungen!$A$2:$D$27,2,FALSE),"") ->  | D23: =IFERROR(VLOOKUP($E23,Dienstleistungen!$A$2:$D$27,3,FALSE),"") ->  | F23: =IFERROR(VLOOKUP($E23,Dienstleistungen!$A$2:$D$27,4,FALSE),"") -> 
B24: 110 | C24: =IFERROR(VLOOKUP($E24,Dienstleistungen!$A$2:$D$27,2,FALSE),"") ->  | D24: =IFERROR(VLOOKUP($E24,Dienstleistungen!$A$2:$D$27,3,FALSE),"") ->  | F24: =IFERROR(VLOOKUP($E24,Dienstleistungen!$A$2:$D$27,4,FALSE),"") -> 
B25: 120 | C25: =IFERROR(VLOOKUP($E25,Dienstleistungen!$A$2:$D$27,2,FALSE),"") ->  | D25: =IFERROR(VLOOKUP($E25,Dienstleistungen!$A$2:$D$27,3,FALSE),"") ->  | F25: =IFERROR(VLOOKUP($E25,Dienstleistungen!$A$2:$D$27,4,FALSE),"") -> 
B26: 130 | C26: =IFERROR(VLOOKUP($E26,Dienstleistungen!$A$2:$D$27,2,FALSE),"") ->  | D26: =IFERROR(VLOOKUP($E26,Dienstleistungen!$A$2:$D$27,3,FALSE),"") ->  | F26: =IFERROR(VLOOKUP($E26,Dienstleistungen!$A$2:$D$27,4,FALSE),"") -> 
B27: 140 | C27: =IFERROR(VLOOKUP($E27,Dienstleistungen!$A$2:$D$27,2,FALSE),"") ->  | D27: =IFERROR(VLOOKUP($E27,Dienstleistungen!$A$2:$D$27,3,FALSE),"") ->  | F27: =IFERROR(VLOOKUP($E27,Dienstleistungen!$A$2:$D$27,4,FALSE),"") -> 
B28: 150 | C28: =IFERROR(VLOOKUP($E28,Dienstleistungen!$A$2:$D$27,2,FALSE),"") ->  | D28: =IFERROR(VLOOKUP($E28,Dienstleistungen!$A$2:$D$27,3,FALSE),"") ->  | F28: =IFERROR(VLOOKUP($E28,Dienstleistungen!$A$2:$D$27,4,FALSE),"") -> 
B29: 160 | C29: =IFERROR(VLOOKUP($E29,Dienstleistungen!$A$2:$D$27,2,FALSE),"") ->  | D29: =IFERROR(VLOOKUP($E29,Dienstleistungen!$A$2:$D$27,3,FALSE),"") ->  | F29: =IFERROR(VLOOKUP($E29,Dienstleistungen!$A$2:$D$27,4,FALSE),"") -> 
B30: 170 | C30: =IFERROR(VLOOKUP($E30,Dienstleistungen!$A$2:$D$27,2,FALSE),"") ->  | D30: =IFERROR(VLOOKUP($E30,Dienstleistungen!$A$2:$D$27,3,FALSE),"") ->  | F30: =IFERROR(VLOOKUP($E30,Dienstleistungen!$A$2:$D$27,4,FALSE),"") -> 
B31: 180 | C31: =IFERROR(VLOOKUP($E31,Dienstleistungen!$A$2:$D$27,2,FALSE),"") ->  | D31: =IFERROR(VLOOKUP($E31,Dienstleistungen!$A$2:$D$27,3,FALSE),"") ->  | F31: =IFERROR(VLOOKUP($E31,Dienstleistungen!$A$2:$D$27,4,FALSE),"") -> 
B32: 190 | C32: =IFERROR(VLOOKUP($E32,Dienstleistungen!$A$2:$D$27,2,FALSE),"") ->  | D32: =IFERROR(VLOOKUP($E32,Dienstleistungen!$A$2:$D$27,3,FALSE),"") ->  | F32: =IFERROR(VLOOKUP($E32,Dienstleistungen!$A$2:$D$27,4,FALSE),"") -> 
B33: 200 | C33: =IFERROR(VLOOKUP($E33,Dienstleistungen!$A$2:$D$27,2,FALSE),"") ->  | D33: =IFERROR(VLOOKUP($E33,Dienstleistungen!$A$2:$D$27,3,FALSE),"") ->  | F33: =IFERROR(VLOOKUP($E33,Dienstleistungen!$A$2:$D$27,4,FALSE),"") -> 
C34: Besonderer STAMMKUNDEN - RABATT | G34: Gesamt | H34: =SUM(H14:H33) -> 300
G35: 0 | H35: =-H34*G35 -> 0
G36: Netto | H36: =H34+H35 -> 300
G37: 20% Mwst. | H37: =H36*0.2 -> 60
B38: =VLOOKUP(B6,Z2:AB10,3,FALSE) -> Bitte bezahlen sie folgenden fälligen Betrag: | G38: Summe inkl. Mwst. | H38: =SUM(H36:H37) -> 360
C40: Zahlungsbedingungen:
C41: 0.3 | E41: Sofort bei Auftragserteilung | F41: Summe | H41: =H36*C41 -> 90
F42: 20% MWST | H42: =H41*0.2 -> 18
F43: Inkl. MWST | H43: =H41+H42 -> 108
C45: =1-C41 -> 0.7 | E45: Sofort bei Fertigstellung mit Bargeld | F45: Summe | H45: =H36*C45 -> 210
F46: 20% MWST | H46: =H45*0.2 -> 42
F47: Inkl. MWST | H47: =H45+H46 -> 252
B49: Wenn sich weitere Fragen ergeben oder ich irgendetwas für Sie tun kann, zögern Sie bitte nicht, mich anzurufen oder mir eine E-Mail zu schicken. Mit freundlichen Grüßen | J49: =B49 -> Wenn sich weitere Fragen ergeben oder ich irgendetwas für Sie tun kann, zögern Sie bitte nicht, mich anzurufen oder mir eine E-Mail zu schicken. Mit freundlichen Grüßen
D50: 0 | E50: Tage zur Korrektur des Datum | F50: 1

Sheet Kunden
A1: Firmenname | B1: Anrede | C1: Name / Adresszeile | D1: Adresse | E1: Zusätzliche Kundenstammdaten | F1: Anredekombination
A2: Aufsperrprofi e.U. | B2: Herr | C2: Markus Wagner | D2: Vorgartenmarkt 5 1020 Wien | E2: FN: 362433s UID: ATU57243389 Telefon: 0664/916 06 33 E-Mail: office@aufsperrprofi.at | F2: =IFERROR(VLOOKUP(Tabelle3[[#This Row],[Anrede]],Anredetext,2,FALSE),"Sehr geehrte Damen und Herren") -> Sehr geehrter
A3: BOCS Unternehmensberatung Ingenierbüro e.U. | B3: Herr | C3: Ing.Dipl.Wi.Ing.(FH) Alexander Salib | D3: Reindorfgasse 32 A-1150 Wien | E3: Firmenbuch. FN 309397 x UID AT U64249799 email: office@bocs.at www.bocs.at | F3: =IFERROR(VLOOKUP(Tabelle3[[#This Row],[Anrede]],Anredetext,2,FALSE),"Sehr geehrte Damen und Herren") -> Sehr geehrter
A4: Einmalkunde | D4: Keine | E4: Keine | F4: =IFERROR(VLOOKUP(Tabelle3[[#This Row],[Anrede]],Anredetext,2,FALSE),"Sehr geehrte Damen und Herren") -> Sehr geehrte Damen und Herren | G4: KUNDEN - s o r t i e r e n
A5: Familie, | B5: Herr | C5: Georg , | D5: Bossigasse ,, 1130 Wien | E5: Tel: 01/ 00000 | F5: =IFERROR(VLOOKUP(Tabelle3[[#This Row],[Anrede]],Anredetext,2,FALSE),"Sehr geehrte Damen und Herren") -> Sehr geehrter
A6: Immobilienverwaltung Barilich GmbH | B6: Herr | C6: Christian Liebetreu | D6: Fillgradergasse 7/ 4. Stock A-1060 Wien | E6: Ansprechpartner: Felix Kriegler +43 1 961 81 66 www.iv-b.at office@iv-b.at UID: ATU73401669 Firmenbuchnummer: FN 492811 y | F6: =IFERROR(VLOOKUP(Tabelle3[[#This Row],[Anrede]],Anredetext,2,FALSE),"Sehr geehrte Damen und Herren") -> Sehr geehrter
A7: NowBor e.U. | B7: Frau | C7: Ewa Nowak | D7: Meinhartsdorfergasse 9/ 15 A-1150 Wien | E7: Firmenbuch Nr.: FN 535900p Handelsgericht Wien UID: ATU 75749512 nowbor@bocs.at www.nowbor.bocs.at +43/ 699/ 172 614 95 | F7: =IFERROR(VLOOKUP(Tabelle3[[#This Row],[Anrede]],Anredetext,2,FALSE),"Sehr geehrte Damen und Herren") -> Sehr geehrte
A8: Relax BOCS loung bar & cafe | B8: Frau | C8: Ewa Nowak | D8: Reindorfgasse 32 A-1150 Wien | E8: Firmenbuch Nr.: FN 535900p Handelsgericht Wien UID: ATU 75749512 Relax@bocs.at www.Relax.BOCS.at +43/ 699/ 172 614 95 | F8: =IFERROR(VLOOKUP(Tabelle3[[#This Row],[Anrede]],Anredetext,2,FALSE),"Sehr geehrte Damen und Herren") -> Sehr geehrte
A9: Sorglos und Sicher Treuer GmbH. | B9: Herr | C9: Markus Treuer | D9: Blindengasse 7-9 Mezzanin, Top 16 1080 Wien | E9: Firmenbuch. 519564s UID: AT U64249799 T +43 699 112 31 981 M +43 676 902 79 40 dijana.treuer@sorglosundsicher.at | F9: =IFERROR(VLOOKUP(Tabelle3[[#This Row],[Anrede]],Anredetext,2,FALSE),"Sehr geehrte Damen und Herren") -> Sehr geehrter
F10: =IFERROR(VLOOKUP(Tabelle3[[#This Row],[Anrede]],Anredetext,2,FALSE),"Sehr geehrte Damen und Herren") -> Sehr geehrte Damen und Herren
F11: =IFERROR(VLOOKUP(Tabelle3[[#This Row],[Anrede]],Anredetext,2,FALSE),"Sehr geehrte Damen und Herren") -> Sehr geehrte Damen und Herren
F12: =IFERROR(VLOOKUP(Tabelle3[[#This Row],[Anrede]],Anredetext,2,FALSE),"Sehr geehrte Damen und Herren") -> Sehr geehrte Damen und Herren
F13: =IFERROR(VLOOKUP(Tabelle3[[#This Row],[Anrede]],Anredetext,2,FALSE),"Sehr geehrte Damen und Herren") -> Sehr geehrte Damen und Herren
F14: =IFERROR(VLOOKUP(Tabelle3[[#This Row],[Anrede]],Anredetext,2,FALSE),"Sehr geehrte Damen und Herren") -> Sehr geehrte Damen und Herren
F15: =IFERROR(VLOOKUP(Tabelle3[[#This Row],[Anrede]],Anredetext,2,FALSE),"Sehr geehrte Damen und Herren") -> Sehr geehrte Damen und Herren
F16: =IFERROR(VLOOKUP(Tabelle3[[#This Row],[Anrede]],Anredetext,2,FALSE),"Sehr geehrte Damen und Herren") -> Sehr geehrte Damen und Herren
F17: =IFERROR(VLOOKUP(Tabelle3[[#This Row],[Anrede]],Anredetext,2,FALSE),"Sehr geehrte Damen und Herren") -> Sehr geehrte Damen und Herren
F18: =IFERROR(VLOOKUP(Tabelle3[[#This Row],[Anrede]],Anredetext,2,FALSE),"Sehr geehrte Damen und Herren") -> Sehr geehrte Damen und Herren
F19: =IFERROR(VLOOKUP(Tabelle3[[#This Row],[Anrede]],Anredetext,2,FALSE),"Sehr geehrte Damen und Herren") -> Sehr geehrte Damen und Herren
F20: =IFERROR(VLOOKUP(Tabelle3[[#This Row],[Anrede]],Anredetext,2,FALSE),"Sehr geehrte Damen und Herren") -> Sehr geehrte Damen und Herren
F21: =IFERROR(VLOOKUP(Tabelle3[[#This Row],[Anrede]],Anredetext,2,FALSE),"Sehr geehrte Damen und Herren") -> Sehr geehrte Damen und Herren
F22: =IFERROR(VLOOKUP(Tabelle3[[#This Row],[Anrede]],Anredetext,2,FALSE),"Sehr geehrte Damen und Herren") -> Sehr geehrte Damen und Herren
F23: =IFERROR(VLOOKUP(Tabelle3[[#This Row],[Anrede]],Anredetext,2,FALSE),"Sehr geehrte Damen und Herren") -> Sehr geehrte Damen und Herren
F24: =IFERROR(VLOOKUP(Tabelle3[[#This Row],[Anrede]],Anredetext,2,FALSE),"Sehr geehrte Damen und Herren") -> Sehr geehrte Damen und Herren
F25: =IFERROR(VLOOKUP(Tabelle3[[#This Row],[Anrede]],Anredetext,2,FALSE),"Sehr geehrte Damen und Herren") -> Sehr geehrte Damen und Herren
F26: =IFERROR(VLOOKUP(Tabelle3[[#This Row],[Anrede]],Anredetext,2,FALSE),"Sehr geehrte Damen und Herren") -> Sehr geehrte Damen und Herren
F27: =IFERROR(VLOOKUP(Tabelle3[[#This Row],[Anrede]],Anredetext,2,FALSE),"Sehr geehrte Damen und Herren") -> Sehr geehrte Damen und Herren
F28: =IFERROR(VLOOKUP(Tabelle3[[#This Row],[Anrede]],Anredetext,2,FALSE),"Sehr geehrte Damen und Herren") -> Sehr geehrte Damen und Herren
F29: =IFERROR(VLOOKUP(Tabelle3[[#This Row],[Anrede]],Anredetext,2,FALSE),"Sehr geehrte Damen und Herren") -> Sehr geehrte Damen und Herren
F30: =IFERROR(VLOOKUP(Tabelle3[[#This Row],[Anrede]],Anredetext,2,FALSE),"Sehr geehrte Damen und Herren") -> Sehr geehrte Damen und Herren
F31: =IFERROR(VLOOKUP(Tabelle3[[#This Row],[Anrede]],Anredetext,2,FALSE),"Sehr geehrte Damen und Herren") -> Sehr geehrte Damen und Herren

Sheet Dienstleistungen
A1: Tätigkeit/ Produkt/ Leistungsbeschreibung | B1: Menge | C1: Einheit | D1: Preis € / Einheit
A2: PKW-Aufwand innerhalb Wien inkl. Parkgebühren | B2: 1 | C2: Anfahrt | D2: 80
A3: PKW-Aufwand Niederösterreich inkl. Parkgebühren | B3: 1 | C3: Anfahrt | D3: 100
A4: LKW-Regiekosten | B4: 1 | C4: Stunden | D4: 41
A5: Fuhre zur Deponie inkl. Entsorgungskosten | B5: 1 | C5: Anfahrt | D5: 250
A6: Regiestunden für zusätzliche Arbeit | B6: 1 | C6: Stunden | D6: 41
A7: Zusatzkosten | B7: 1 | C7: Pausch. | D7: 100
A9: Gartengestaltung & Gartenarbeiten Anlegen und Pflegen von Beeten, das Säen, Pflanzen und Pflegen von Blumen, Sträuchern, Hecken und Bäumen. Rasen säen und mähen, umgraben, Unkraut jäten, usw. | B9: 1 | C9: Stunden | D9: 41
A10: Zusatzkosten zB. Saatgut, Pflanzen, Dünger, Unkrautvernichter, Mulch, Schädlingsbekämpfung usw. Werkzeuge-, Geräte-, Maschinen- und Energiekosten | B10: 1 | C10: Pausch. | D10: 100
E11: PREISLISTE Produkt und Dienstleistungen
A12: Büroreinigung/ Unterhaltsreinigung. Nasswischen glatter Oberflächen, Staubsaugen, Staubwischen, Fussboden wischen, Müllertsorgen, Pflanzen gießen. Reinigung von Küche Sanitäranlagen,. | B12: 1 | C12: Stunden | D12: 25
A13: Grundreinigung/ Frühjahresputz Besonders gründliche Hygienereinigung und Sauberkeit. Einrichtungsgegenstände, Betriebsmittel oder Bodenbeläge werden von Grund auf gereinigt. | B13: 1 | C13: Stunden | D13: 25
A14: Hausbetreuung & Hausreinigung Komplette Hausreinigung, inklusive Gehsteig und Grünflächenbetreuung. Gründliche Hygiene und Sauberkeit in Stiegen, Vorräumen, Wartebereichen usw. | B14: 1 | C14: Stunden | D14: 25
A15: Material- und Werkzeugpauschale Kleinteile für Wartungsarbeiten (Glühbirnen usw.) Werkzeuganteil (Maschinenkosten) Hilfsstoffe (Putzmittel usw.) | B15: 1 | C15: Pausch. | D15: 100
A17: Winterservice - Schneeräumung & Streuung Behandlung von Gehsteigen, Einfahrten, Parkplätzen und Flächen mit geeignetem Streumittel. Tauwetterkontrolle und Maßnahmen gegen Glatteis, Eiszapfen, Dachlawinen, usw. bis zur Splittentfernung. | B17: 1 | C17: Std | D17: 41
A18: Maschinen-, Werkzeug- und Materialpauschale Werkzeugabnützung, Maschinen- Treibstoff und Energiekosten Hilfsstoffe wie Streusplitt, Streusalz (Natriumchlorid oder Kaliumkarbonat), Entsorgung von Einkehrmaterial usw. | B18: 1 | C18: Pausch. | D18: 100

Sheet DL_Paket_Vorlagen
B2: Postitions Vorlage 1 | E2: G A R T E N G E S T A L T U N G & Gartenpflege
B3: Pos | C3: Menge | D3: Einheit | E3: Tätigkeit/ Produkt/ Leistungsbeschreibung | F3: Preis € / Einheit | G3: Rabatt % / Position | H3: Gesamt € / Position
B4: 10 | C4: 180 | D4: Stunden | E4: Gartengestaltung & Gartenarbeiten Anlegen und Pflegen von Beeten, das Säen, Pflanzen und Pflegen von Blumen, Sträuchern, Hecken und Bäumen. Rasen säen und mähen, umgraben, Unkraut jäten, usw. | F4: 41 | H4: =IFERROR(IF(C4*F4*(1-G4)<>0,C4*F4*(1-G4),""),"") -> 7380
B5: 20 | C5: 1 | D5: =IFERROR(VLOOKUP($E5,Dienstleistungen!$A$2:$D$27,3,FALSE),"") -> Pausch. | E5: Zusatzkosten zB. Saatgut, Pflanzen, Dünger, Unkrautvernichter, Mulch, Schädlingsbekämpfung usw. Werkzeuge-, Geräte-, Maschinen- und Energiekosten | F5: 200 | H5: =IFERROR(IF(C5*F5*(1-G5)<>0,C5*F5*(1-G5),""),"") -> 200
B6: 30 | C6: 23 | D6: =IFERROR(VLOOKUP($E6,Dienstleistungen!$A$2:$D$27,3,FALSE),"") -> Stunden | E6: LKW-Regiekosten | F6: =IFERROR(VLOOKUP($E6,Dienstleistungen!$A$2:$D$27,4,FALSE),"") -> 41 | H6: =IFERROR(IF(C6*F6*(1-G6)<>0,C6*F6*(1-G6),""),"") -> 943
B7: 40 | D7: =IFERROR(VLOOKUP($E7,Dienstleistungen!$A$2:$D$27,3,FALSE),"") -> Anfahrt | E7: Fuhre zur Deponie inkl. Entsorgungskosten | F7: =IFERROR(VLOOKUP($E7,Dienstleistungen!$A$2:$D$27,4,FALSE),"") -> 250 | H7: =IFERROR(IF(C7*F7*(1-G7)<>0,C7*F7*(1-G7),""),"") -> 
B8: 50 | C8: =IFERROR(VLOOKUP($E8,Dienstleistungen!$A$2:$D$27,2,FALSE),"") ->  | D8: =IFERROR(VLOOKUP($E8,Dienstleistungen!$A$2:$D$27,3,FALSE),"") ->  | F8: =IFERROR(VLOOKUP($E8,Dienstleistungen!$A$2:$D$27,4,FALSE),"") ->  | H8: =IFERROR(IF(C8*F8*(1-G8)<>0,C8*F8*(1-G8),""),"") -> 
B11: Postitions Vorlage 2 | E11: BÜROREINIGUNG / Unterhaltsreinigung "Regelmäßig"
B12: Pos | C12: Menge | D12: Einheit | E12: Tätigkeit/ Produkt/ Leistungsbeschreibung | F12: Preis € / Einheit | G12: Rabatt % / Position | H12: Gesamt € / Position
B13: 10 | C13: 12 | D13: =IFERROR(VLOOKUP($E13,Dienstleistungen!$A$2:$D$27,3,FALSE),"") -> Stunden | E13: Büroreinigung/ Unterhaltsreinigung. Nasswischen glatter Oberflächen, Staubsaugen, Staubwischen, Fussboden wischen, Müllertsorgen, Pflanzen gießen. Reinigung von Küche Sanitäranlagen,. | F13: =IFERROR(VLOOKUP($E13,Dienstleistungen!$A$2:$D$27,4,FALSE),"") -> 25 | H13: =IFERROR(IF(C13*F13*(1-G13)<>0,C13*F13*(1-G13),""),"") -> 300
B14: 20 | C14: 4 | D14: =IFERROR(VLOOKUP($E14,Dienstleistungen!$A$2:$D$27,3,FALSE),"") -> Anfahrt | E14: PKW-Aufwand innerhalb Wien inkl. Parkgebühren | F14: =IFERROR(VLOOKUP($E14,Dienstleistungen!$A$2:$D$27,4,FALSE),"") -> 80 | G14: 1 | H14: =IFERROR(IF(C14*F14*(1-G14)<>0,C14*F14*(1-G14),""),"") -> 
B15: 30 | D15: =IFERROR(VLOOKUP($E15,Dienstleistungen!$A$2:$D$27,3,FALSE),"") ->  | H15: =IFERROR(IF(C15*F15*(1-G15)<>0,C15*F15*(1-G15),""),"") -> 
B16: 40 | D16: =IFERROR(VLOOKUP($E16,Dienstleistungen!$A$2:$D$27,3,FALSE),"") ->  | F16: =IFERROR(VLOOKUP($E16,Dienstleistungen!$A$2:$D$27,4,FALSE),"") ->  | H16: =IFERROR(IF(C16*F16*(1-G16)<>0,C16*F16*(1-G16),""),"") -> 
B17: 50 | C17: =IFERROR(VLOOKUP($E17,Dienstleistungen!$A$2:$D$27,2,FALSE),"") ->  | D17: =IFERROR(VLOOKUP($E17,Dienstleistungen!$A$2:$D$27,3,FALSE),"") ->  | F17: =IFERROR(VLOOKUP($E17,Dienstleistungen!$A$2:$D$27,4,FALSE),"") ->  | H17: =IFERROR(IF(C17*F17*(1-G17)<>0,C17*F17*(1-G17),""),"") -> 
B20: Postitions Vorlage 3 | E20: G R U N D R E I N I G U N G Gründlicher "Frühjahrsputz"
B21: Pos | C21: Menge | D21: Einheit | E21: Tätigkeit/ Produkt/ Leistungsbeschreibung | F21: Preis € / Einheit | G21: Rabatt % / Position | H21: Gesamt € / Position
B22: 10 | C22: 8 | D22: =IFERROR(VLOOKUP($E22,Dienstleistungen!$A$2:$D$27,3,FALSE),"") -> Stunden | E22: Grundreinigung/ Frühjahresputz Besonders gründliche Hygienereinigung und Sauberkeit. Einrichtungsgegenstände, Betriebsmittel oder Bodenbeläge werden von Grund auf gereinigt. | F22: =IFERROR(VLOOKUP($E22,Dienstleistungen!$A$2:$D$27,4,FALSE),"") -> 25 | H22: =IFERROR(IF(C22*F22*(1-G22)<>0,C22*F22*(1-G22),""),"") -> 200
B23: 20 | C23: =IFERROR(VLOOKUP($E23,Dienstleistungen!$A$2:$D$27,2,FALSE),"") -> 1 | D23: =IFERROR(VLOOKUP($E23,Dienstleistungen!$A$2:$D$27,3,FALSE),"") -> Pausch. | E23: Material- und Werkzeugpauschale Kleinteile für Wartungsarbeiten (Glühbirnen usw.) Werkzeuganteil (Maschinenkosten) Hilfsstoffe (Putzmittel usw.) | F23: 20 | H23: =IFERROR(IF(C23*F23*(1-G23)<>0,C23*F23*(1-G23),""),"") -> 20
B24: 30 | C24: 1 | D24: =IFERROR(VLOOKUP($E24,Dienstleistungen!$A$2:$D$27,3,FALSE),"") ->  | E24: KFZ-Aufwand innerhalb Wien inkl. Parkgebühren | F24: =IFERROR(VLOOKUP($E24,Dienstleistungen!$A$2:$D$27,4,FALSE),"") ->  | H24: =IFERROR(IF(C24*F24*(1-G24)<>0,C24*F24*(1-G24),""),"") -> 
B25: 40 | C25: =IFERROR(VLOOKUP($E25,Dienstleistungen!$A$2:$D$27,2,FALSE),"") ->  | D25: =IFERROR(VLOOKUP($E25,Dienstleistungen!$A$2:$D$27,3,FALSE),"") ->  | F25: =IFERROR(VLOOKUP($E25,Dienstleistungen!$A$2:$D$27,4,FALSE),"") ->  | H25: =IFERROR(IF(C25*F25*(1-G25)<>0,C25*F25*(1-G25),""),"") -> 
B26: 50 | C26: =IFERROR(VLOOKUP($E26,Dienstleistungen!$A$2:$D$27,2,FALSE),"") ->  | D26: =IFERROR(VLOOKUP($E26,Dienstleistungen!$A$2:$D$27,3,FALSE),"") ->  | F26: =IFERROR(VLOOKUP($E26,Dienstleistungen!$A$2:$D$27,4,FALSE),"") ->  | H26: =IFERROR(IF(C26*F26*(1-G26)<>0,C26*F26*(1-G26),""),"") -> 
B29: Postitions Vorlage 4 | E29: HAUSBESORGERDIENST - STIEGENHAUS - Reinigung
B30: Pos | C30: Menge | D30: Einheit | E30: Tätigkeit/ Produkt/ Leistungsbeschreibung | F30: Preis € / Einheit | G30: Rabatt % / Position | H30: Gesamt € / Position
B31: 10 | C31: 8 | D31: =IFERROR(VLOOKUP($E31,Dienstleistungen!$A$2:$D$27,3,FALSE),"") -> Stunden | E31: Hausbetreuung & Hausreinigung Komplette Hausreinigung, inklusive Gehsteig und Grünflächenbetreuung. Gründliche Hygiene und Sauberkeit in Stiegen, Vorräumen, Wartebereichen usw. | F31: =IFERROR(VLOOKUP($E31,Dienstleistungen!$A$2:$D$27,4,FALSE),"") -> 25 | H31: =IFERROR(IF(C31*F31*(1-G31)<>0,C31*F31*(1-G31),""),"") -> 200
B32: 20 | C32: =IFERROR(VLOOKUP($E32,Dienstleistungen!$A$2:$D$27,2,FALSE),"") -> 1 | D32: =IFERROR(VLOOKUP($E32,Dienstleistungen!$A$2:$D$27,3,FALSE),"") -> Pausch. | E32: Material- und Werkzeugpauschale Kleinteile für Wartungsarbeiten (Glühbirnen usw.) Werkzeuganteil (Maschinenkosten) Hilfsstoffe (Putzmittel usw.) | F32: 20 | H32: =IFERROR(IF(C32*F32*(1-G32)<>0,C32*F32*(1-G32),""),"") -> 20
B33: 30 | C33: 1 | D33: =IFERROR(VLOOKUP($E33,Dienstleistungen!$A$2:$D$27,3,FALSE),"") ->  | E33: KFZ-Aufwand innerhalb Wien inkl. Parkgebühren | F33: =IFERROR(VLOOKUP($E33,Dienstleistungen!$A$2:$D$27,4,FALSE),"") ->  | H33: =IFERROR(IF(C33*F33*(1-G33)<>0,C33*F33*(1-G33),""),"") -> 
B34: 40 | C34: =IFERROR(VLOOKUP($E34,Dienstleistungen!$A$2:$D$27,2,FALSE),"") ->  | D34: =IFERROR(VLOOKUP($E34,Dienstleistungen!$A$2:$D$27,3,FALSE),"") ->  | F34: =IFERROR(VLOOKUP($E34,Dienstleistungen!$A$2:$D$27,4,FALSE),"") ->  | H34: =IFERROR(IF(C34*F34*(1-G34)<>0,C34*F34*(1-G34),""),"") -> 
B35: 50 | C35: =IFERROR(VLOOKUP($E35,Dienstleistungen!$A$2:$D$27,2,FALSE),"") ->  | D35: =IFERROR(VLOOKUP($E35,Dienstleistungen!$A$2:$D$27,3,FALSE),"") ->  | F35: =IFERROR(VLOOKUP($E35,Dienstleistungen!$A$2:$D$27,4,FALSE),"") ->  | H35: =IFERROR(IF(C35*F35*(1-G35)<>0,C35*F35*(1-G35),""),"") -> 
B38: Postitions Vorlage 5 | E38: W I N T E R D I E N S T
B39: Pos | C39: Menge | D39: Einheit | E39: Tätigkeit/ Produkt/ Leistungsbeschreibung | F39: Preis € / Einheit | G39: Rabatt % / Position | H39: Gesamt € / Position
B40: 10 | C40: 8 | D40: =IFERROR(VLOOKUP($E40,Dienstleistungen!$A$2:$D$27,3,FALSE),"") -> Std | E40: Winterservice - Schneeräumung & Streuung Behandlung von Gehsteigen, Einfahrten, Parkplätzen und Flächen mit geeignetem Streumittel. Tauwetterkontrolle und Maßnahmen gegen Glatteis, Eiszapfen, Dachlawinen, usw. bis zur Splittentfernung. | F40: =IFERROR(VLOOKUP($E40,Dienstleistungen!$A$2:$D$27,4,FALSE),"") -> 41 | H40: =IFERROR(IF(C40*F40*(1-G40)<>0,C40*F40*(1-G40),""),"") -> 328
B41: 20 | C41: =IFERROR(VLOOKUP($E41,Dienstleistungen!$A$2:$D$27,2,FALSE),"") -> 1 | D41: =IFERROR(VLOOKUP($E41,Dienstleistungen!$A$2:$D$27,3,FALSE),"") -> Pausch. | E41: Maschinen-, Werkzeug- und Materialpauschale Werkzeugabnützung, Maschinen- Treibstoff und Energiekosten Hilfsstoffe wie Streusplitt, Streusalz (Natriumchlorid oder Kaliumkarbonat), Entsorgung von Einkehrmaterial usw. | F41: =IFERROR(VLOOKUP($E41,Dienstleistungen!$A$2:$D$27,4,FALSE),"") -> 100 | H41: =IFERROR(IF(C41*F41*(1-G41)<>0,C41*F41*(1-G41),""),"") -> 100
B42: 30 | C42: 1 | D42: =IFERROR(VLOOKUP($E42,Dienstleistungen!$A$2:$D$27,3,FALSE),"") ->  | E42: KFZ-Aufwand innerhalb Wien inkl. Parkgebühren | F42: =IFERROR(VLOOKUP($E42,Dienstleistungen!$A$2:$D$27,4,FALSE),"") ->  | H42: =IFERROR(IF(C42*F42*(1-G42)<>0,C42*F42*(1-G42),""),"") -> 
B43: 40 | C43: =IFERROR(VLOOKUP($E43,Dienstleistungen!$A$2:$D$27,2,FALSE),"") ->  | D43: =IFERROR(VLOOKUP($E43,Dienstleistungen!$A$2:$D$27,3,FALSE),"") ->  | F43: =IFERROR(VLOOKUP($E43,Dienstleistungen!$A$2:$D$27,4,FALSE),"") ->  | H43: =IFERROR(IF(C43*F43*(1-G43)<>0,C43*F43*(1-G43),""),"") -> 
B44: 50 | C44: =IFERROR(VLOOKUP($E44,Dienstleistungen!$A$2:$D$27,2,FALSE),"") ->  | D44: =IFERROR(VLOOKUP($E44,Dienstleistungen!$A$2:$D$27,3,FALSE),"") ->  | F44: =IFERROR(VLOOKUP($E44,Dienstleistungen!$A$2:$D$27,4,FALSE),"") ->  | H44: =IFERROR(IF(C44*F44*(1-G44)<>0,C44*F44*(1-G44),""),"") -> 

Sheet Einstellungen (hidden)
A1: Mengeneinheiten | B1: Fusstexte | C1: Betrifft: | D1: Projektbezeichnungen | E1: Gesamtrabatt Texte | F1: Zahlungsbedingung: | G1: Geschäftsprozesse | H1: Kopftexte | I1: Text links von Zahlsumme | J1: Anrede | K1: Textbeginn | L1: Briefeinleitung | M1: Hauptteil
A2: Pausch. | B2: Mit freundlichen Grüßen | C2: Betrifft: | D2: G A R T E N G E S T A L T U N G & Gartenpflege | E2: Besonderer STAMMKUNDEN - RABATT | F2: Sofort bei Auftragserteilung | G2: Rechnung Nr.: | H2: wir bedanken uns für das entgegen gebrachte Vertrauen und erlauben unsere Leistungen wie folgt zu verrechnen: | I2: Bitte bezahlen sie folgenden fälligen Betrag: | J2: Herr | K2: Sehr geehrter | L2: danke für das entgegengebrachte Vertrauen in unser Unternehmen. | M2: Folgende Informationen konnte ich für Sie einholen: 1) 2) 3)
A3: Stück | B3: Wenn sich weitere Fragen ergeben oder ich irgendetwas für Sie tun kann, zögern Sie bitte nicht, mich anzurufen oder mir eine E-Mail zu schicken. Mit freundlichen Grüßen | C3: Betrifft Projekt: | D3: BÜROREINIGUNG / Unterhaltsreinigung "Regelmässig" | E3: Für Ihr umfangreiches Vorhaben gewähren wir folgenden PROJEKT-RABATT: | F3: Sofort nach Rechnungserhalt | G3: Zahlungserinnerung zur Rechnung Nr.: | H3: Leider konnten wir bis zum heutigen Datum keinerlei Einzahlungen ihrerseits auf unserem Konto feststellen. Sollten Sie zwischenzeitlich schon bezahlt haben so sehen sie dieses Schreiben als erledigt an. | I3: Bitte bezahlen sie folgenden überfälligen Betrag prompt: | J3: Frau | K3: Sehr geehrte | L3: vielen Dank für das nette Telefongespräch. | M3: Gerne beantworte ich Ihre Fragen: 1) 2) 3)
A4: Liter | B4: Sind Sie zufrieden mit unserer Leistung? Dann empfehlen Sie uns doch weiter. Sollten Sie Verbesserungsvorschläge für uns haben, so sagen sie es uns einfach. Vielen Dank | C4: Betrifft Auftrag: | D4: G R U N D R E I N I G U N G Gründlicher "Frühjaresputz" | E4: Ihr Projekt wird als Success Story mit Fotos als Unsere Referenz weiterverwendet. Dafür gewähren wir Ihnen einen besonderen REFERENZ-RABATT: | F4: Sofort bei Fertigstellung mit Bargeld | G4: Angebot Nr.: | H4: wir freuen uns sehr, wenn Sie sich für unser Angebot entscheiden und bieten Ihnen wie folgt an: | I4: =TODAY()+30+Rechnungsvorlage!D50 -> 2022-12-04 | J4: Geschäftsleitung | K4: Sehr geehrte | L4: vielen Dank für Ihre Ihren wertvollen Hinweis! | M4: Wir möchten uns nochmals für die Unannehmlichkeiten entschuldigen und sclagen folgendes vor: 1) 2) 3)
A5: Meter | B5: Ihr Vertrauen und die gute Zusammenarbeit ist uns wichtig. Mit freundlichen Grüßen | C5: Betrifft Ihre Anfrage: | D5: HAUSBESORGERDIENST - STIEGENHAUS - Reinigung | F5: Zahlungsziel 14 Tage | G5: Auftragsbestätigung | H5: gerne bestätigen wir Ihnen den Auftrag wie folgt: | I5: Der Wert dieser Lieferung beträgt Gesamt: | K5: Sehr geehrte Damen und Herren | L5: danke Ihnen für Ihr Interesse an unseren Dienstleistungen. | M5: Beiliegend erhalten Sie wie vereinbart die Rechnung für die lezte Abrechnungsperiode.
A6: Anfahrt | C6: Betrifft Ihre Reklamation: | D6: W I N T E R D I E N S T | F6: Zahlungsziel 30 Tage | G6: Lieferschein Nr.: | H6: Ihre Lieferung enthält folgende Positionen: | I6: Folgenden Betrag erhalten sie Retour: | K6: Sehr geehrte Damen und Herren | L6: bitte entschuldigen Sie, dass ich mich erst jetzt melde.
A7: Anfahrten | F7: Zahlungsziel 60 Tage | G7: Gutschrift Nr.: | H7: Ihre Gutschrift enthlält folgende Positionen: | K7: Sehr geehrte Damen und Herren
W8: 1
A9: Stunden
A10: Vormittage
A11: Nachmittage
A12: Halbtage
A13: Tage
A14: Woche
A15: Wochen
A16: Monat
A17: Monate
A18: Jahr
A19: Räume
A20: Büros
A21: Stiegen
A22: Objekte
A24: Quadratmeter
A25: Hecktar
A27: Bäume
A28: Hecken
A29: Sträucher

Sheet Shulung
B2: Kurzbefehle
A3: FN + F2 | B3: Text direkt in der Zelle ändern
A4: ALT + Enter | B4: Zeilenumbruch im Excel
A5: Esc | B5: Raus aus dem Feld ohne änderung (Escape)
A6: Strg + C | B6: Kopieren
A7: Strg + V | B7: Einfügen
B11: Empfohlene Vorbereitung
A12: 1 | B12: Kunden anlegen (möglichst mit Personennamen)
A13: =A12+1 -> 2 | B13: Dienstleistungen und Produkte anlegen mit Preis und Einheit (= Preisliste wie Kassa)
A14: =A13+1 -> 3 | B14: Dienstleistungs-Pakete anlegen als Vorlage (Mengen, Einheiten und Preise wie auf Rechnung üblich= wie Rechnungsvorlage)
A15: 4 | B15: Zahlungsbedingung die normal verwendet wird definieren
A16: 5 | B16: Schlusstext auswählen
B19: Anleitung für Rechnungsvorlage, Angebot usw | C19: manuell
A20: 1 | B20: Kunden auswählen
A21: =1+A20 -> 2 | B21: Geschäftsprozess wählen: Rechnung Angebot usw + Fortlaufende Nummer
A22: =A21+1 -> 3 | B22: Dienstleistungspaket von Vorlage übernehmen (Entspricht komletter Vorlage) | C22: x
A23: =A22+1 -> 4 | B23: Und / Oder Leistung auswählen (--> Dadurch wird Einheit und Preis übernommen) | C23: x
A24: 5 | B24: Komplette Position manuell eingeben | C24: x
A25: 6 | B25: Betreff auswählen | C25: x
A26: 7 | B26: Optional Positionsrabatt
A27: 8 | B27: Optional Gesamtrabatt
A28: 9 | B28: Optional Anzahlung
A29: 10 | B29: Optional ohne Mwst zB Rechnung Privat oder Kleinunternehmerregel
A30: 11
A31: 12 | B31: Druckvoransicht (dadurch werden auch Zeilenhöhen angepasst)
A32: 13 | B32: Drucken / Mailen
B36: Anleitung für Briefvorlage | C36: Alternativ manuell
A37: 1 | B37: Kunden auswählen
A38: =1+A37 -> 2 | B38: Betreff auswählen oder manuell eingeben | C38: x
A39: =1+A38 -> 3 | B39: Einleitungstext auswählen | C39: x
A40: =1+A39 -> 4 | B40: Hauptteiltext auswählen + Anpassen + Ergänzen | C40: x
A41: 5 | B41: Schlusstext auswählen | C41: x
A42: 6 | B42: =B31 -> Druckvoransicht (dadurch werden auch Zeilenhöhen angepasst)
A43: 7 | B43: Drucken / Mailen
